Cogmind - Beta 15 X1 @@@ ROGUE MODE // 2024.11.16 @ 14:27:47 Player: H3-RMN Result: Core destroyed Performance ------------- Evolutions (0) 0 Regions Visited (2) 400 Robots Destroyed (16) 80 Value Destroyed (409) 409 Prototype IDs (2) 40 Alien Tech Used (0) 0 Bonus (-41) -41 TOTAL SCORE: 888 Bonus ------- Friendly Fire -41 Cogmind --------- Core Integrity 0/250 Matter 274/300 Energy 200/200 System Corruption 0% Temperature Cool (0) Movement Rolling (210) Ox10 Location -10/Subcaves Parts ------- > --- POWER (1) -------- Subdweller Power Source > --- PROPULSION (2) --- Light Treads Subdweller Monowheel > --- UTILITY (2) ------ Humpback > --- WEAPON (2) ------- Subdweller Laser Subdweller Beam Cannon > --- INVENTORY (35) --- Ion Engine Light Treads Subdweller Monowheel Subdweller Monowheel Large Storage Unit Huge Storage Unit Subdweller Optics Makeshift Light Armor Plating Hacking Suite EM Pulse Gun Subdweller Laser Subdweller Laser Beam Cannon Assault Rifle Subdweller Machine Gun Makeshift Shrapnel Gun Grenade Launcher Hammer Peak State ------------ > --- POWER ------------ Subdweller Power Source > --- PROPULSION ------- Light Treads Subdweller Monowheel > --- UTILITY ---------- Large Storage Unit Subdweller Optics > --- WEAPON ----------- Subdweller Laser Makeshift Shrapnel Gun > --- INVENTORY -------- Ion Engine Light Treads Light Treads Subdweller Monowheel Huge Storage Unit Subdweller Optics Hacking Suite EM Pulse Gun Subdweller Laser Subdweller Laser Beam Cannon Assault Rifle Grenade Launcher Hammer [Rating: 16] Favorites ----------- Power Subdweller Power Source Engine Subdweller Power Source Propulsion Light Treads Treads Light Treads Wheel Subdweller Monowheel Utility Large Storage Unit Device Seismic Detector Storage Large Storage Unit Weapon Assault Rifle Energy Gun Subdweller Laser Energy Cannon Beam Cannon Ballistic Gun Assault Rifle Launcher Grenade Launcher Build | -11 -10 -10 ------- Run | Yrd Mat Sub Slots Evolved . | . . . Power . | . . . Propulsion . | . . . Utility . | . . . Weapon . | . . . Parts Attached 26 | 8 2 16 Power 2 | 1 . 1 Engine 2 | 1 . 1 Core . | . . . Reactor . | . . . Propulsion 7 | 3 . 4 Treads 2 | 1 . 1 Leg . | . . . Wheel 5 | 2 . 3 Hover . | . . . Flight . | . . . Utility 6 | 2 2 2 Device 2 | 1 . 1 Storage 4 | 1 2 1 Processor . | . . . Hackware . | . . . Protection . | . . . Artifact . | . . . Weapon 11 | 2 . 9 Energy Gun 4 | . . 4 Energy Cannon 2 | . . 2 Ballistic Gun 4 | 2 . 2 Ballistic Cannon . | . . . Launcher 1 | . . 1 Special Weapon . | . . . Impact Weapon . | . . . Slashing Weapon . | . . . Piercing Weapon . | . . . Special Melee Weapon . | . . . Unidentified Prototypes . | . . . Parts Lost 5 | . . 5 Power . | . . . Propulsion 2 | . . 2 Utility 1 | . . 1 Weapon 2 | . . 2 Highest Loss Streak 2 | . . 2 To Critical Strikes . | . . . Average Backups 12 | 2 10 15 Power . | . 1 1 Propulsion 2 | 1 2 3 Utility 2 | . 1 3 Weapon 6 | . 5 7 Tool/Special . | . . . Unused Backups 14 | . 1 13 Power 1 | . . 1 Propulsion 2 | . . 2 Utility 5 | . . 5 Weapon 6 | . 1 5 Tool/Special . | . . . Average Slot Usage (%) 95 | . 100 92 Engine 14 | . 14 14 Treads 12 | . 14 12 Wheel 15 | . 14 15 Device 9 | . 14 7 Storage 14 | . 14 14 Energy Gun 6 | . . 9 Energy Cannon 1 | . . 2 Ballistic Gun 19 | . 28 14 Peak Build Rating 16 | 7 8 16 Average Rating 10 | 5 7 12 On Entrance 5 | . 7 8 Naked Turns . | . . . Heaviest Build 217 | 15 30 217 Greatest Support 40 | 26 10 40 Greatest Overweight (x) 10 | 1 2 10 Average Overweight (x) 2 | . 1 3 Largest Inventory Capacity 35 | 8 25 35 Average Capacity 19 | 7 14 23 Most Carried 18 | 5 12 18 Average Carried 12 | 2 10 15 Final Capacity 35 | 8 15 35 Final Carried 18 | 5 12 18 Class Distribution -------------------- 59% | Mutant 27% | Hauler-Mutant 12% | Scavenger-Mutant Dominant Class ---------------- Mutant | -10/Materials Hauler-Mutant | -10/Subcaves Resources | -11 -10 -10 ----------- Run | Yrd Mat Sub Matter Collected 843 | 322 36 485 Remotely . | . . . Salvage Created 618 | 162 36 420 Parts 44 | 10 4 30 Haulers Intercepted . | . . . Recyclers Shooed . | . . . Parts Field Recycled . | . . . Retrieved Matter . | . . . Parts Self-Destructed 13 | . . 13 Prevented . | . . . Kills | -11 -10 -10 ------- Run | Yrd Mat Sub Combat Hostiles Destroyed 8 | . . 8 Guns 2 | . . 2 Cannons 2 | . . 2 AOE 4 | . . 4 Classes Destroyed 8 | 2 2 4 Tunneler 3 | 3 . . Recycler 1 | 1 . . Operator 1 | . 1 . Turret 2 | . . 2 Watcher 1 | . 1 . Swarmer 1 | . . 1 Subdweller 7 | . . 7 Scientist 1 | . . 1 Best Kill Streak 4 | 4 1 3 Combat Bots Only 2 | . . 2 Max Kills in Single Turn 2 | 1 1 2 Gunslinging . | . . . Exploded 2 | . . 2 Melee . | . . . Uniques/NPCs Destroyed . | . . . Combat | -11 -10 -10 -------- Run | Yrd Mat Sub Hostile Shots Fired 110 | . . 110 Missed 41 | . . 41 Damage Taken 1074 | . . 1074 Core 253 | . . 253 Absorbed by Shields . | . . . Core Remaining (%) 100 | 100 . . Volleys Fired 76 | 7 8 61 Largest 2 | 2 2 2 Hottest 140 | 40 40 140 Shots Fired 139 | 14 16 109 Gun 114 | 14 16 84 Cannon 17 | . . 17 Launcher 8 | . . 8 Special . | . . . Kinetic 86 | 14 16 56 Thermal 41 | . . 41 Explosive 8 | . . 8 Electromagnetic 4 | . . 4 Robot Hit Streak 20 | 7 8 20 Robot Miss Streak 4 | 1 4 4 Penetration Max . | . . . Secondary Targets . | . . . Shots Hit Robots 92 | 10 5 77 Core Hits 37 | 5 3 29 Critical Kills . | . . . Critical Parts Destroyed . | . . . Critical Strikes . | . . . Melee Attacks . | . . . Impact . | . . . Slashing . | . . . Piercing . | . . . Sneak Attacks . | . . . Combat Hostiles . | . . . Follow-up Attacks . | . . . Damage Inflicted 1857 | 121 63 1673 Guns 1223 | 121 63 1039 Cannons 231 | . . 231 Explosions 403 | . . 403 Melee . | . . . Ramming . | . . . Kinetic 819 | 121 63 635 Thermal 591 | . . 591 Explosive 403 | . . 403 Electromagnetic 44 | . . 44 Impact . | . . . Slashing . | . . . Piercing . | . . . Highest Corruption . | . . . Average Corruption . | . . . Corruption Purged . | . . . Corruption Blocked . | . . . Overload Shots . | . . . Overflow Damage . | . . . Projectiles . | . . . Explosions . | . . . Melee . | . . . Knockbacks . | . . . Impact . | . . . Kinetic . | . . . Secondary . | . . . Self-Inflicted Damage 7 | . . 7 Shots 1 | . . 1 Rammed . | . . . Targets Rammed . | . . . Kicked . | . . . Crushed . | . . . Highest Temperature 36 | . . 36 Average Temperature 20 | . . 20 Received Heat Transfer 399 | . . 399 Siege Activations . | . . . Martial Activations . | . . . Shielding Activations . | . . . Robots Disrupted . | . . . Combat Hostiles . | . . . Robots Corrupted . | . . . Combat Hostiles . | . . . Parts Fried . | . . . Impact Corruptions . | . . . Robots Melted . | . . . Combat Hostiles . | . . . Parts Melted . | . . . Heat Transferred 894 | . . 894 Parts Sabotaged . | . . . Parts Stolen . | . . . Parts Stripped . | . . . Power Chain Reactions . | . . . Alert | -11 -10 -10 ------- Run | Yrd Mat Sub Maximum Alert Level . | . . . Low Security (%) 100 | 100 100 . Level 1 . | . . . Level 2 . | . . . Level 3 . | . . . Level 4 . | . . . Level 5 . | . . . High Security . | . . . Max Security . | . . . Peak Influence 10 | 10 7 . Initial . | . . . Average . | 2 . . Influence Increases 102 | 20 22 60 Destroy 0b10 Robot/C 60 | . . 60 Destroy 0b10 Robot/NC 30 | 20 10 . Destroy Leader 2 | . 2 . Successful Hack 10 | . 10 . Influence Decreases 60 | 20 22 18 Time Decay 60 | 20 22 18 Squads Dispatched 1 | . 1 . Investigation . | . . . Extermination . | . . . Reinforcement 1 | . 1 . Assault . | . . . Garrison . | . . . Intercept . | . . . Searches Triggered . | . . . Construction Impeded . | . . . Haulers Reinforced . | . . . Active Scanning Responses . | . . . Cargo Convoy Interrupts . | . . . Stealth | -11 -10 -10 --------- Run | Yrd Mat Sub Distress Signals . | . . . Communications Jammed . | . . . Distress Signals . | . . . Times Spotted 13 | . 3 10 Peak Tracking Total 3 | . 1 3 Tactical Retreats . | . . . Traps | -11 -10 -10 ------- Run | Yrd Mat Sub Traps Triggered . | . . . Indirectly . | . . . Trap Hack Attempts . | . . . Triggered . | . . . Disarmed . | . . . Reprogrammed . | . . . Reused . | . . . Traps Extracted . | . . . Installed . | . . . Triggered . | . . . Machines | -11 -10 -10 ---------- Run | Yrd Mat Sub Machines Disabled 2 | . . 2 Max in Single Turn 1 | . . 1 Machines Repaired . | . . . Machines Dismantled . | . . . Machines Sabotaged . | . . . Overloaded Fab Kills . | . . . Hacking | -11 -10 -10 --------- Run | Yrd Mat Sub Machines Accessed 4 | . 4 . Terminals 3 | . 3 . Fabricators . | . . . Repair Stations . | . . . Recycling Units 1 | . 1 . Scanalyzers . | . . . Garrison Access . | . . . Total Hacks 5 | . 5 . Successful 4 | . 4 . Failed 1 | . 1 . Catastrophic 1 | . 1 . Database Lockouts . | . . . Manual 2 | . 2 . Terminals 4 | . 4 . Fabricators . | . . . Repair Stations . | . . . Recycling Units 1 | . 1 . Scanalyzers . | . . . Garrison Access . | . . . Terminal Hacks 3 | . 3 . Robot Analysis 2 | . 2 . Prototype ID Bank 1 | . 1 . Fabricator Hacks . | . . . Repair Station Hacks . | . . . Recycling Unit Hacks 1 | . 1 . Report Inventory 1 | . 1 . Scanalyzer . | . . . Garrison Access Hacks . | . . . Unauthorized Hacks . | . . . Terminals . | . . . Fabricators . | . . . Repair Stations . | . . . Recycling Units . | . . . Scanalyzers . | . . . Garrison Access . | . . . Data Cores Recovered . | . . . Used . | . . . Hacking Detections 3 | . 3 . Full Trace Events . | . . . Feedback Events . | . . . Feedback Blocked . | . . . Robot Schematics Acquired . | . . . Robots Built . | . . . Authchips . | . . . Time . | . . . Total Robot Build Rating . | . . . Part Schematics Acquired . | . . . Parts Built . | . . . Authchips . | . . . Time . | . . . Total Part Build Rating . | . . . Parts Repaired . | . . . Time . | . . . Parts Recycled . | . . . Recycled Matter . | . . . Retrieved Matter . | . . . Retrieved Components . | . . . Parts Scanalyzed . | . . . Part Schematics Acquired . | . . . Parts Damaged . | . . . Bothacking | -11 -10 -10 ------------ Run | Yrd Mat Sub Used RIF Installer . | . . . Robots Hacked . | . . . Non-combat . | . . . Combat . | . . . Robot Hacks Applied . | . . . Relay Couplers Released . | . . . Fabnet Peak Effective % . | . . . Robots Rewired . | . . . Allies Hacked . | . . . Hacks Repelled . | . . . Allies | -11 -10 -10 -------- Run | Yrd Mat Sub Total Allies . | . . . Largest Group . | . . . Highest-Rated Group . | . . . Highest-Rated Ally . | . . . Total Orders . | . . . Ally Attacks . | . . . Total Damage . | . . . Kills . | . . . Allies Corrupted . | . . . Allies Melted . | . . . Intel | -11 -10 -10 ------- Run | Yrd Mat Sub Active Infowar (turns) 1001 | 10 503 488 Optics 4 | . . 4 Seismic 997 | 10 503 484 Robot Analysis Total 2 | . 2 . Derelict Logs Recovered 1 | . . 1 Drone Launches . | . . . Drone Recoveries . | . . . Exploration | -11 -10 -10 ------------- Run | Yrd Mat Sub Turns Passed 1518 | 82 503 933 Spaces Moved 749 | 48 218 483 Core 1 | 1 . . Treads . | . . . Legs . | . . . Wheels 748 | 47 218 483 Hover . | . . . Flight . | . . . Fastest Speed 50 | 50 95 110 Average Speed 126 | 91 108 138 Slowest Speed 210 | 95 110 210 Overloaded Moves . | . . . Propulsion Burnouts . | . . . Robots Hopped . | . . . Cave-ins Triggered . | . . . Exploration Rate (%) 27 | 4 42 35 Regions Visited 2 Branch Regions 1 Pre-discovered Areas 2 | . . 2 Known Exits Taken . | . . . Unknown Exits Taken 2 | 1 1 . Scrap Searched 3 | . . 3 Spaces Dug . | . . . Terrain Destroyed 24 | . . 24 Melee . | . . . Projectile 1 | . . 1 AOE 23 | . . 23 Terrain Rammed . | . . . Walls Destroyed . | . . . Machines Disabled . | . . . Actions | -11 -10 -10 --------- Run | Yrd Mat Sub Total 1172 | 68 468 636 Wait 264 | 1 231 32 Move 747 | 47 217 483 Hop . | . . . Pick Up 38 | 5 7 26 Fast Attach 10 | 7 . 3 Attach 5 | . . 5 Detach . | . . . Swap 19 | 1 3 15 Drop 13 | . 2 11 Fire 76 | 7 8 61 Melee . | . . . Ram . | . . . Kick . | . . . Crush . | . . . Escape Stasis . | . . . Rewire . | . . . Trap . | . . . Miscellaneous . | . . . Route ------- -11/Scrapyard -10/Materials (discovered 2 exits: [*Mat] / [*Sub]) -10/Subcaves (discovered 2 exits: [*Mat] / [*Rec]) History --------- Turn | Location | Event 23 | -11/Scrapyard | Discovered new exit (range 15) 83 | -11/Scrapyard | Entered Materials 189 | -10/Materials | Discovered new exit (range 11) 309 | -10/Materials | Build established: Mutant 577 | -10/Materials | Discovered new exit (range 9) 586 | -10/Materials | Entered Subcaves 587 | -10/Subcaves | Approached by a straggling Scientist 661 | -10/Subcaves | Learned location of Zion (-7) 662 | -10/Subcaves | Discovered new exit (range 15) 1234 | -10/Subcaves | Met a Zionite searching for "candidates" 1282 | -10/Subcaves | A swath of the cavern ceiling suddenly collapsed 1337 | -10/Subcaves | Ambushed by Subdweller buried in earth 1344 | -10/Subcaves | Disturbed a concealed Subdweller 1380 | -10/Subcaves | Core integrity fell below 50% 1408 | -10/Subcaves | Build established: Hauler-Mutant 1447 | -10/Subcaves | Discovered new exit (range 15) 1458 | -10/Subcaves | Core integrity fell below 20% 1519 | -10/Subcaves | Core destroyed Last Messages --------------- 01434_ Acquired 35 matter. 01438_ Acquired Sub. Machine Gun. 01447_ Acquired 13 matter. 01447_ EXIT=FOUND 01449_ S-10 Pest destroyed. 01450_ Acquired 10 matter. 01451_ Machine disabled. 01452_ Acquired 3 matter. EG-DG6(c): "I think it's somewhere southeast of here" 01453_ Machine disabled. 01460_ The unstable cave ceiling collapses. 01461_ Autobeam Turret destroyed. 01470_ Destroyed Autobeam. 01470_ Autobeam Turret destroyed. 01475_ Acquired 3 matter. 01485_ The unstable cave ceiling collapses. EG-DG6(c): "I think it's somewhere southeast of here" 01509_ EG-DG6(c) destroyed. 01515_ Acquired 18 matter. 01519_ Tech Extrapolator violently self-destructs. Map ----- +----------------------------------------------------+ | ?????????????????????????????????????????????????? | | ?????????????????????????????????????????????????? | | ?????????????????????????????????????????????????? | | ?????????????????????????????????????????????????? | | ?????????????????????????????????????????????????? | | ?????????????????????????????????????????????????? | | ?????????????????????????????????????????????????? | | ?????????????????????????????????????????????????? | | ?????????????????????????????????????????????????? | | ?????????????????????????????????????????????????? | | ?????????????????????????????????????????????????? | | ?????????????????????????????????????????????????? | | ?????????????????????????????????????????????????? | | ?????????????????????????????????????????????????? | | ?????????????????????????????????????????????????? | | ?????????????????????????????????????????????????? | | ?????????????????????????????????????????????????? | | ?????????????????????????????????????????????????? | | ?????????????????????????????????????????????????? | | ?????????????????????????????????????????????????? | | ???????????????????##????????????????????????????? | | ??????????????????## #???????????????????????????? | | ??????????????##### ???????????????????????????? | | ?????????????## ???????????????????????????? | | ?????????????# ? ########???????????????????? | | ??????????????# ##?# #" @"""#???????????????????? | | ??????????????## #?# * #???????????????????? | | ??????????????# #### ! #???????????????????? | | ??????##???#### ##??????????????????? | | ??????# #??#"# <#??????????????????? | | ??????# ###" ##??????????????????? | | ??????# "## #???????????????????? | | ??????# ####### #???????????????????? | | ??????# #?????# " """#???????????????????? | | ??????## #?????#########?#?????? ????????? | | ???????## &#??????????????? ###??# ???????? | | ??????### *#???####???????? ### ???????? | | ?????## ! ##??# #####????# # ???????? | | ?????# #### # #???# #???????? | | ?????# ## ### ###?## #???????? | | ?????### ### #?## ### #???????? | | ???????###??### ##??#!!! #???????? | | ??????????????## #####??#% ! #??????? | | ???????????????###???# #%#[!% ## ???????? | | ??????????????????????#&!"" %& ##?????????????? | | ?????????????????????#$ "## ! #?????????????? | | ?????????????????????# "## ! ####??????????? | | ?????????????????????####" " """" #??????????? | | ???????????????????????#" ##" " ##??????????? | | ???????????????????????## ##"" ##???????????? | +----------------------------------------------------+ Best States ------------- Heat Dissipation 25 Energy Generation 15 Energy Capacity 250 Matter Stores 300 Matter Capacity 300 Sight Range 16 Terrain Scan Density 10 Evasion (%) 44 Recoil Reduction 1 Item Schematics ----------------- None Robot Schematics ------------------ None Fabricated ------------ Nothing Repaired ---------- Nothing Alien Tech Used ----------------- None Achievements -------------- None Challenges ------------ None Game ------ Seed JunkChargeBeam Manual? 0 Play Time 00:16:49 Cumulative 555.2 hours Start 2024.11.15 @ 23:13:24 End 2024.11.16 @ 14:27:47 Sessions 2 Manual Loads 0 Difficulty Rogue Special Mode None Game No. 212 Rogue 207 Adventurer 4 Explorer 1 Win Type - Total 8 Types 5/1/0/1/0/1/0/0/0 Lore% 90 Gallery% 92 Achievement% 87 Wizard Run 0 Options --------- Layout 0 ASCII 0 Keyboard 0 Movement Numpad Keybinds 0 Fullscreen 2 Font 18/CogNarrow Map View 76x50 Zoom Use 0% Tactical HUD 1 Map Filters NONE Filters NONE Steam 1 RUN: 14321691-77c0-4e8b-9a04-6feb9e9a66b5